[Event "13th All African Rapid-ch Men 2024"]
[Site "Accra"]
[Date "2024.03.10"]
[Round "3.3"]
[White "Rakotomaharo, Fy Antenaina"]
[Black "Rongwane, Gomolemo"]
[Result "1-0"]
[ECO "D32"]
[WhiteElo "2454"]
[BlackElo "2021"]
[Annotator "TA"]
[PlyCount "137"]
[EventDate "2024.03.07"]
[EventType "rapid"]
[EventCountry "GHA"]
[SourceTitle "playchess.com"]
[Source "ChessBase"]
[SourceQuality "1"]
[TimeControl "900+10"]

{[%evp 18,137,34,27,44,43,42,29,67,63,62,62,69,50,79,63,59,60,83,78,80,88,117,91,108,107,114,112,114,114,118,120,114,118,116,87,94,88,87,82,87,81,82,70,82,74,89,72,72,55,72,86,94,94,97,97,99,99,187,104,111,111,133,118,170,145,280,287,287,251,257,225,225,72,71,71,71,71,71,71,71,71,71,72,72,72,72,72,72,71,71,71,29960,29957,29973,29974,29968,29962,29977,29978,29977,29978,29978,29979,29984,29985,29984,29985,29982,29983,29983,29984,29987,29985,29987,29988,29987,29984,29984,29985,29985,29986]} 1. Nf3 {[%emt 0:00:04]} Nf6 {[%emt 0:00:02]} 2. c4 {[%emt 0:00:01]} e6 {[%emt 0:00:04]} 3. Nc3 {[%emt 0:00:01]} d5 {[%emt 0:00:01]} 4. e3 {[%emt 0:00:01]} Be7 {[%emt 0:00:23]} 5. b3 {[%emt 0:00:05]} O-O {[%emt 0:00:04]} 6. Bb2 {[%emt 0:00:01]} c5 {[%emt 0:01:01]} 7. cxd5 {[%emt 0:00:03]} exd5 {[%emt 0:00:52]} 8. d4 {[%emt 0:00:03]} Nc6 {[%emt 0:00:11]} 9. Be2 {[%emt 0:00:03]} Bf5 {[%emt 0:00:32]} 10. O-O {[%emt 0:00:08]} Rc8 {[%emt 0:00:54]} 11. Rc1 {[%emt 0:01:21]} cxd4 {[%emt 0:01:58]} 12. Nxd4 {[%emt 0:00:02]} Nxd4 {[%emt 0:00:53] Weiß hat minimalen Vorteil.} 13. Qxd4 {[%emt 0:00:03]} Bc5 {[%emt 0:00:08]} 14. Qf4 {[%emt 0:00:16]} Be6 {[%emt 0:00:15]} 15. Rfd1 {[%emt 0:00:05]} Bd6 {[%emt 0:00:28]} 16. Qd4 {[%emt 0:01:52][%cal Oc3b5]} Bc5 {[%emt 0:00:06]} 17. Qh4 {[%emt 0:00:06]} Be7 {[%emt 0:00:31][%cal Of6g4]} 18. Qa4 {[%emt 0:00:32]} Qb6 {[%emt 0:01:29]} 19. Bf3 {[%emt 0:01:33]} Rcd8 {[%emt 0:01:51]} 20. Qb5 {[%emt 0:01:59]} Qxb5 {[%emt 0:01:11]} 21. Nxb5 {[%emt 0:00:02]} a6 {[%emt 0:00:02]} 22. Nc7 {[%emt 0:00:07] Weiß steht aktiver.} Rd7 {[%emt 0:00:19]} 23. Bxf6 {[%emt 0:04:33]} Bxf6 {[%emt 0:00:28]} 24. Bxd5 {[%emt 0:00:10]} Bg4 {[%emt 0:03:30] [#]} 25. Bf3 {[%emt 0:02:19]} Rxd1+ {[%emt 0:00:01]} 26. Rxd1 {[%emt 0:00:09]} Bxf3 {[%emt 0:00:04]} 27. gxf3 $16 {[%emt 0:00:02][%mdl 4096] Endspiel. KRB-KRN} Rc8 {[%emt 0:00:10]} 28. Nd5 {[%emt 0:01:03]} Bd8 {[%emt 0:00:08]} 29. Rd2 {[%emt 0:00:08]} Kf8 {[%emt 0:00:02]} 30. f4 {[%emt 0:00:04]} Ke8 {[%emt 0:00:03]} 31. Kg2 {[%emt 0:00:04]} Ba5 {[%emt 0:00:11]} 32. b4 {[%emt 0:00:17]} Bd8 {[%emt 0:00:01]} 33. Kf3 {[%emt 0:00:09]} Rc4 {[%emt 0:00:09]} 34. Ke2 {[%emt 0:00:20]} f5 {[%emt 0:00:13]} 35. Kd3 {[%emt 0:00:02]} Rc6 {[%emt 0:00:19]} 36. f3 {[%emt 0:00:04]} Kf7 {[%emt 0:00:18]} 37. e4 {[%emt 0:00:10]} a5 {[%emt 0:00:22]} (37... Rc1 $16) 38. a3 {[%emt 0:00:27]} ({Nicht} 38. exf5 axb4 39. Rb2 (39. Nxb4 Rd6+ 40. Ke2 Rxd2+ 41. Kxd2 Kf6 $11) 39... Be7 $14) (38. bxa5 $18 {Und Rb2 würde nun gewinnen.} Kg6 39. Ke2) 38... axb4 {[%emt 0:00:03]} 39. axb4 {[%emt 0:00:02]} (39. exf5 $2 {ist das falsche Schlagen.} bxa3 40. Ra2 Ra6 $19) 39... Ra6 {[%emt 0:00:21]} 40. exf5 {[%emt 0:01:00]} Rd6 {[%emt 0:00:41] [#]} (40... h5 $16 41. Rd1 g6) 41. Ke4 $1 $18 {[%emt 0:00:04]} Bb6 {[%emt 0:00:11]} (41... Ra6 $16 {ist wohl besser.} 42. Rc2 Rc6) 42. Rc2 {[%emt 0:00:06]} Bd8 {[%emt 0:00:16]} 43. Rc8 {[%emt 0:00:03]} Rd7 {[%emt 0:00:02]} 44. Rb8 {[%emt 0:00:09]} Bf6 {[%emt 0:00:07]} 45. Nb6 $2 {[%emt 0:00:16]} (45. Rh8 $18 {ist viel giftiger.}) 45... Rd4+ $16 {[%emt 0:00:12]} 46. Ke3 {[%emt 0:00:02]} Rxb4 {[%emt 0:00:13]} 47. Rxb7+ {[%emt 0:00:10]} Ke8 {[%emt 0:00:02] Droht stark ...Bd4+.} 48. Rb8+ {[%emt 0:00:05]} Kf7 {[%emt 0:00:04] Droht ...Bd4+ und aus.} 49. Nd7 {[%emt 0:00:22]} Bd4+ {[%emt 0:00:37]} 50. Ke4 {[%emt 0:00:23]} Rxb8 {[%emt 0:00:18]} 51. Nxb8 {[%emt 0:00:01] KB-KN} Bg1 {[%emt 0:00:01]} 52. h3 {[%emt 0:00:01]} Bc5 {[%emt 0:00:26]} 53. Nd7 {[%emt 0:00:03]} Be7 {[%emt 0:00:06]} 54. Ne5+ {[%emt 0:00:05]} Ke8 $2 {[%emt 0:00:02][%mdl 8192] Verliert die Partie.} (54... Kf6 $16) 55. Kd5 {[%emt 0:00:06] Weiß setzt Matt.} Bh4 {[%emt 0:00:07]} 56. Ke6 {[%emt 0:00:02]} Bg3 {[%emt 0:00:04]} 57. Nd3 {[%emt 0:00:04]} Kf8 {[%emt 0:00:04]} 58. f6 {[%emt 0:00:12]} gxf6 {[%emt 0:00:02]} 59. Kxf6 {[%emt 0:00:01]} Bh4+ {[%emt 0:00:17]} 60. Ke6 {[%emt 0:00:02]} Bg3 {[%emt 0:00:20]} 61. f5 {[%emt 0:00:06]} Bc7 {[%emt 0:00:43]} 62. f6 {[%emt 0:00:05]} Ba5 {[%emt 0:00:07]} 63. Ne5 {[%emt 0:00:05]} Bb4 {[%emt 0:00:06]} 64. h4 {[%emt 0:00:10]} h5 {[%emt 0:00:06]} 65. Nd7+ {[%emt 0:00:28]} Kg8 {[%emt 0:00:07]} 66. f7+ {[%emt 0:00:01]} Kg7 {[%emt 0:00:01]} 67. f8=Q+ {[%emt 0:00:02]} Bxf8 {[%emt 0:00:02]} 68. Nxf8 {[%emt 0:00:01]} Kxf8 {[%emt 0:00:02]} 69. Kf6 {[%emt 0:00:01] Gewichteter Fehlerwert: Weiß=0.10 (sehr präzise) /Schwarz=0.22 (präzise) .  Verlustzug:     	---       	Schwarz=1     Fehler:       	Weiß=2     	Schwarz=3     Ungenau:       	---       	Schwarz=3     OK:         	Weiß=17    	Schwarz=21    Bester:       	Weiß=5     	Schwarz=4} 1-0

[Event "13th All African Rapid-ch Men 2024"]
[Site "Accra"]
[Date "2024.03.10"]
[Round "3.4"]
[White "Mwali, Chitumbo"]
[Black "Levitan, Caleb Levi"]
[Result "1-0"]
[ECO "A14"]
[WhiteElo "2340"]
[BlackElo "2235"]
[Annotator "TA"]
[PlyCount "125"]
[EventDate "2024.03.07"]
[EventType "rapid"]
[EventCountry "GHA"]
[SourceTitle "playchess.com"]
[Source "ChessBase"]
[SourceQuality "1"]
[TimeControl "900+10"]

{[%evp 9,124,0,33,33,36,38,33,25,47,43,52,51,54,47,53,31,49,46,61,26,37,33,32,27,26,29,111,27,47,0,12,12,10,10,22,19,44,26,69,65,164,171,168,130,120,86,114,106,112,0,74,0,97,83,77,73,111,97,113,100,152,155,150,152,147,93,119,87,88,90,87,78,128,128,134,140,125,114,119,127,117,97,107,112,115,44,45,46,46,47,127,133,162,104,102,59,58,0,2,0,0,0,70,72,344,337,29985,29986,29986,29987,29987,29988,29997,29998,29998,29999,29999]} 1. c4 {[%emt 0:00:03]} e6 {[%emt 0:00:02]} 2. g3 {[%emt 0:00:04]} d5 {[%emt 0:00:06]} 3. Bg2 {[%emt 0:00:01]} Nf6 {[%emt 0:00:01]} 4. Nf3 {[%emt 0:00:02]} dxc4 {[%emt 0:00:07]} 5. O-O {[%emt 0:00:06]} Be7 {[%emt 0:00:10]} 6. Na3 {[%emt 0:00:13]} Bxa3 {[%emt 0:00:56]} 7. bxa3 {[%emt 0:00:01]} O-O {[%emt 0:00:02]} 8. Qc2 {[%emt 0:00:53] Weiß steht etwas besser.} a6 {[%emt 0:01:05]} 9. Bb2 {[%emt 0:00:31]} Nbd7 {[%emt 0:00:41] Wehrt Ne5 ab} 10. Qxc4 {[%emt 0:00:04]} b5 {[%emt 0:01:37]} 11. Qc6 {[%emt 0:00:09]} Rb8 {[%emt 0:00:25]} 12. Rac1 $36 {[%emt 0:00:05][%mdl 2048] Weiss drückt.} Nd5 {[%emt 0:00:10]} 13. Ne5 {[%emt 0:01:29]} N7b6 {[%emt 0:00:22]} 14. d3 {[%emt 0:03:57] Weiß steht deutlich aktiver.} Bb7 {[%emt 0:00:43]} 15. Qc2 {[%emt 0:00:03]} Rc8 {[%emt 0:01:36]} 16. Nc6 {[%emt 0:00:14]} Qd7 {[%emt 0:00:27]} 17. Ba1 {[%emt 0:06:00]} f6 {[%emt 0:02:54] [#]} (17... Na4 $11) 18. Bd4 {[%emt 0:01:14]} (18. Bh3 $1 $16) 18... Rfe8 {[%emt 0:00:49]} 19. e4 {[%emt 0:01:11]} (19. Na5 $14 {ist überlegen.} Ba8 20. Nb3) 19... Ne7 {[%emt 0:00:37]} (19... Bxc6 $5 20. Qxc6 Nf4 21. Bxb6 Qxc6 22. Rxc6 cxb6 23. Rxb6 Ne2+ 24. Kh1 Nd4 $14) 20. Nxe7+ {[%emt 0:00:14]} Qxe7 {[%emt 0:00:09]} 21. Bc5 {[%emt 0:00:04]} Qd7 {[%emt 0:00:10]} 22. d4 {[%emt 0:00:02]} Nc4 {[%emt 0:01:13]} 23. Rfd1 {[%emt 0:00:18][%cal Oa3a4]} Red8 {[%emt 0:00:21]} 24. a4 {[%emt 0:00:10]} c6 {[%emt 0:00:44]} (24... f5 $14) 25. Bf1 $18 {[%emt 0:00:02]} Nd6 {[%emt 0:00:28]} 26. Bb6 {[%emt 0:00:02]} Re8 {[%emt 0:00:06]} 27. Bh3 {[%emt 0:00:15]} Qf7 {[%emt 0:00:28][%cal Oc6c5]} 28. Bc5 {[%emt 0:00:16]} Rcd8 {[%emt 0:00:48]} 29. Bb6 {[%emt 0:00:09]} Rc8 {[%emt 0:00:14][%cal Oc6c5]} 30. Bc5 {[%emt 0:00:06]} Rcd8 {[%emt 0:00:48]} 31. Bg2 {[%emt 0:00:09][%cal Bh3g2,Bg2f1,Bf1d3][%mdl 32]} Nc4 {[%emt 0:00:34]} 32. Bf1 {[%emt 0:00:05]} Nd6 {[%emt 0:00:01]} 33. Bb6 {[%emt 0:00:19]} Rc8 {[%emt 0:00:21]} 34. Bd3 {[%emt 0:00:07]} e5 {[%emt 0:00:47]} (34... f5 $142) 35. dxe5 $16 {[%emt 0:00:15]} fxe5 {[%emt 0:00:27]} 36. Bf1 {[%emt 0:00:05]} Qe6 {[%emt 0:00:12][%cal Oc6c5]} 37. Bc5 {[%emt 0:00:32]} (37. f3 $142 {Droht Qb3 und aus.} Kh8 38. Qc5) 37... Nf7 {[%emt 0:00:03]} 38. h4 {[%emt 0:00:08]} Rcd8 {[%emt 0:00:16]} 39. Bb6 {[%emt 0:00:03]} Rxd1 {[%emt 0:00:15]} 40. Rxd1 {[%emt 0:00:00]} Re7 {[%emt 0:00:15]} (40... h6 $142 41. Be2 Re7) 41. Qb3 {[%emt 0:00:11]} Qxb3 {[%emt 0:00:11]} 42. axb3 {[%emt 0:00:01]} Bc8 {[%emt 0:00:05]} 43. axb5 {[%emt 0:00:05]} axb5 {[%emt 0:00:06]} 44. Ra1 {[%emt 0:00:01]} Re8 {[%emt 0:00:16]} 45. Ra7 {[%emt 0:00:03]} Be6 {[%emt 0:00:02]} 46. b4 {[%emt 0:00:02]} Nd6 {[%emt 0:00:03]} 47. Bc7 {[%emt 0:00:05]} ({Günstiger ist} 47. Bg2 $16) 47... Nxe4 $14 {[%emt 0:00:15]} 48. Bxe5 {[%emt 0:00:01]} Bf7 {[%emt 0:00:05]} 49. Bd4 {[%emt 0:00:04]} Nd6 {[%emt 0:00:18] [#]} (49... Rd8 $14) 50. Bg2 $1 $16 {[%emt 0:00:06]} Rc8 {[%emt 0:00:14]} 51. Bh3 {[%emt 0:00:02]} (51. g4 $18) 51... Rd8 {[%emt 0:00:05]} 52. Bb6 {[%emt 0:00:17]} Re8 {[%emt 0:00:17]} 53. Bd7 {[%emt 0:00:39]} ({Vorzuziehen ist} 53. Bc5 $14 Re1+ 54. Kh2) 53... Re1+ $11 {[%emt 0:00:01]} 54. Kg2 {[%emt 0:00:00]} Bd5+ {[%emt 0:00:09]} 55. f3 {[%emt 0:00:02] Zielt auf Kf2 ab.} Re2+ {[%emt 0:00:08]} (55... g6 $11) 56. Kf1 $1 $14 {[%emt 0:00:03]} Rb2 {[%emt 0:00:26][%mdl 8192] Verliert die Partie.} (56... Bc4 $16) 57. Bc5 $18 {[%emt 0:00:56]} Nc4 $2 {[%emt 0:00:10]} (57... Bc4+ $18 58. Ke1 Re2+ 59. Kd1 Re5) 58. Ra8+ {[%emt 0:00:15] Weiß setzt Matt.} Kf7 {[%emt 0:00:01]} 59. Rf8+ {[%emt 0:00:21]} Kg6 {[%emt 0:00:01]} 60. Be8+ {[%emt 0:00:11] Das Läuferpaar ist gut.} Kh6 {[%emt 0:00:01] [#]} 61. Rf6+ $3 {[%emt 0:00:03][%mdl 512]} g6 {[%emt 0:00:05]} 62. Bf8+ {[%emt 0:00:02]} Kh5 {[%emt 0:00:03]} 63. Rf5# {[%emt 0:00:01] Gewichteter Fehlerwert: Weiß=0.18 (sehr präzise) /Schwarz=0.35.  Verlustzug:     	---       	Schwarz=1     Fehler:       	Weiß=6     	Schwarz=7     Ungenau:       	Weiß=3     	Schwarz=3     OK:         	Weiß=17    	Schwarz=16    Bester:       	Weiß=3     	Schwarz=5     Stark:        	Weiß=2     	---} 1-0

[Event "13th All African Rapid-ch Men 2024"]
[Site "Accra"]
[Date "2024.03.10"]
[Round "3.5"]
[White "Zhemba, Jemusse"]
[Black "Cogan, Nicolas"]
[Result "1-0"]
[ECO "B04"]
[WhiteElo "2226"]
[BlackElo "2070"]
[Annotator "TA"]
[PlyCount "93"]
[EventDate "2024.03.07"]
[EventType "rapid"]
[EventCountry "GHA"]
[SourceTitle "playchess.com"]
[Source "ChessBase"]
[SourceQuality "1"]
[TimeControl "900+10"]

{[%evp 9,93,17,25,-26,32,-62,-26,-16,-14,-30,-19,-23,-25,-17,42,43,46,13,17,14,33,20,34,34,22,24,29,14,20,0,13,0,22,18,57,60,59,0,0,-10,0,0,0,0,0,0,118,106,85,5,129,46,131,135,542,525,633,613,832,822,904,904,889,771,902,852,1189,1164,917,873,2047,1761,2034,1854,1919,1954,29987,29988,29989,29990,29991,29992,29992,29993,29993,29992]} 1. e4 {[%emt 0:00:10][%cal Be2e4,Be4e5][%mdl 32]} Nf6 {[%emt 0:00:45]} 2. e5 {[%emt 0:00:03]} Nd5 {[%emt 0:00:01]} 3. d4 {[%emt 0:00:05]} d6 {[%emt 0:00:03]} 4. Nf3 {[%emt 0:00:08]} g6 {[%emt 0:00:34]} 5. h3 {[%emt 0:00:15]} Bg7 {[%emt 0:00:17]} 6. Be2 {[%emt 0:00:04]} (6. c4 $142 Nb6 7. exd6) 6... O-O {[%emt 0:01:30]} (6... dxe5 $11 7. dxe5 Nc6) 7. Bg5 {[%emt 0:00:11]} (7. c4 $14 Nb6 8. exd6) 7... h6 {[%emt 0:01:03]} 8. Bd2 {[%emt 0:00:03] Black has an edge.} Nc6 {[%emt 0:00:25]} 9. exd6 {[%emt 0:00:07]} cxd6 {[%emt 0:00:21]} 10. c4 {[%emt 0:00:15]} Nb6 {[%emt 0:00:11][%cal Oe7e5]} 11. Nc3 {[%emt 0:00:09]} Kh7 {[%emt 0:00:29]} (11... e5 $11 12. d5 Nd4) 12. d5 $14 {[%emt 0:00:21]} Ne5 {[%emt 0:00:42]} 13. b3 {[%emt 0:00:02]} e6 {[%emt 0:00:10]} 14. O-O {[%emt 0:00:16]} exd5 {[%emt 0:00:07]} 15. cxd5 {[%emt 0:00:03]} Nxf3+ {[%emt 0:00:25]} 16. Bxf3 {[%emt 0:00:02]} Bf5 {[%emt 0:00:03]} 17. Rc1 {[%emt 0:00:25]} Rc8 {[%emt 0:00:49]} 18. a4 {[%emt 0:01:07]} Nd7 {[%emt 0:03:06]} 19. Nb5 {[%emt 0:01:23]} Rxc1 {[%emt 0:00:26]} 20. Bxc1 {[%emt 0:00:02][%cal Og2g4] And now g4! would win.} Ne5 {[%emt 0:00:31]} 21. Ba3 {[%emt 0:01:22]} Nxf3+ {[%emt 0:03:22]} 22. Qxf3 {[%emt 0:00:08]} Be5 {[%emt 0:00:03]} 23. Qe3 {[%emt 0:02:28]} (23. Nxa7 $14 Bd7 24. Re1) 23... Re8 $11 {[%emt 0:01:42] aiming for ...a6.} 24. f4 {[%emt 0:00:28]} (24. Nxa7 $2 {perishes.} Bb2 (24... Bh2+ $2 25. Kxh2 Rxe3 26. fxe3 $19) 25. Bxb2 Rxe3 26. fxe3 Qb6 $19) 24... Bb2 {[%emt 0:01:05] This pair of bishops is nice.} 25. Qxa7 {[%emt 0:00:31]} Bxa3 {[%emt 0:00:35]} 26. Nxa3 {[%emt 0:00:03]} Re2 {[%emt 0:00:18]} 27. Rf2 {[%emt 0:01:07]} ({Much weaker is} 27. Qxb7 Qf6 28. Rf2 Qa1+ $19) 27... Rxf2 {[%emt 0:00:22]} (27... Re1+ $11 28. Kh2 Qh4) 28. Qxf2 {[%emt 0:00:08][%mdl 4096] Endgame. KQB-KQN} Qa5 {[%emt 0:00:03]} 29. Nb5 {[%emt 0:00:23]} ({Better is} 29. Qd4 $1 $16) 29... Qb4 {[%emt 0:00:16] [#]} (29... Bd7 $11) 30. Qe3 {[%emt 0:00:57]} (30. Qd4 $1 $16 {[%cal Rd4b4]} Qxd4+ 31. Nxd4) 30... Kg8 {[%emt 0:00:15] [#]} (30... Bd7 $1 $14) 31. Qd4 $1 $36 {[%emt 0:01:45][%mdl 2048] White is really pushing.} Qxb3 {[%emt 0:00:10][%mdl 8192] Black cannot hold the game after this.} (31... Qxd4+ $16 {is tougher.} 32. Nxd4 Be4) 32. Nxd6 $18 {[%emt 0:00:19]} Bd7 {[%emt 0:00:10]} 33. a5 {[%emt 0:00:46]} Bxh3 {[%emt 0:00:07]} 34. gxh3 {[%emt 0:01:57] Hoping for Nc4.} Qg3+ {[%emt 0:00:02]} 35. Kf1 {[%emt 0:00:06]} Qxh3+ {[%emt 0:00:01]} 36. Ke2 {[%emt 0:00:12]} Qg2+ {[%emt 0:00:26]} 37. Ke1 {[%emt 0:00:17][%cal Od6c4] Black must now prevent Nc4!} Qh1+ {[%emt 0:00:12]} 38. Kd2 {[%emt 0:00:06]} Qg2+ {[%emt 0:00:02]} 39. Kc3 {[%emt 0:00:08][%cal Od6c4] Threatens to win with Nc4!} Qa2 {[%emt 0:00:09]} 40. Nc4 {[%emt 0:00:09]} Qa1+ {[%emt 0:00:12]} 41. Kd3 {[%emt 0:00:16]} Qb1+ {[%emt 0:00:18]} 42. Kd2 {[%emt 0:00:06] Threatening mate with d6.} h5 {[%emt 0:00:10]} 43. d6 {[%emt 0:00:15][%cal Bd5d6,Bd6d7][%mdl 32] White mates.} Qa2+ {[%emt 0:00:02]} 44. Kc1 {[%emt 0:00:10]} Qe2 {[%emt 0:00:18]} 45. d7 {[%emt 0:00:08]} Qe1+ {[%emt 0:00:01]} 46. Kc2 {[%emt 0:00:07]} Qe2+ {[%emt 0:00:05]} 47. Nd2 {[%emt 0:00:06] Weighted Error Value: White=0.21 (precise) /Black=0.55.  Loses game:     	---       	Black=1      Mistake:       	White=4     	Black=5      Inaccurate:     	White=1     	Black=3      OK:         	White=3     	Black=9      Best:        	White=2     	---        Strong:       	White=1     	---} 1-0

[Event "13th All African Rapid-ch Men 2024"]
[Site "Accra"]
[Date "2024.03.10"]
[Round "3.6"]
[White "Wanyama, Harold"]
[Black "Akpa Prince"]
[Result "1-0"]
[ECO "E85"]
[WhiteElo "2226"]
[BlackElo "1845"]
[Annotator "TA"]
[PlyCount "83"]
[EventDate "2024.03.07"]
[EventType "rapid"]
[EventCountry "GHA"]
[SourceTitle "playchess.com"]
[Source "ChessBase"]
[SourceQuality "1"]
[TimeControl "900+10"]

{[%evp 16,83,56,-24,6,-18,-10,-40,18,15,29,9,17,0,0,4,4,5,4,-32,245,256,250,267,248,248,253,243,229,245,321,216,235,229,231,220,389,374,383,393,372,393,416,399,603,583,590,583,662,660,631,647,640,645,621,586,590,588,768,775,767,760,771,773,1193,1189,1133,1143,1084,970]} 1. d4 {[%emt 0:00:05]} Nf6 {[%emt 0:00:04]} 2. c4 {[%emt 0:00:03]} g6 {[%emt 0:00:02]} 3. Nc3 {[%emt 0:00:03]} d6 {[%emt 0:00:03]} 4. e4 {[%emt 0:00:12]} Bg7 {[%emt 0:00:03]} 5. f3 {[%emt 0:00:02]} O-O {[%emt 0:00:17]} 6. Be3 {[%emt 0:00:02]} e5 {[%emt 0:00:21]} 7. Nge2 {[%emt 0:00:04]} Nc6 {[%emt 0:00:17]} 8. d5 {[%emt 0:00:06]} Ne7 {[%emt 0:00:03]} 9. c5 {[%emt 0:00:06]} ({White should try} 9. h4 $14) 9... Ne8 {[%emt 0:00:45]} 10. Rc1 {[%emt 0:00:18]} f5 {[%emt 0:00:07]} 11. Qc2 {[%emt 0:00:08]} f4 {[%emt 0:00:17]} (11... Nf6 $15) 12. Bf2 $11 {[%emt 0:00:03]} g5 {[%emt 0:00:08]} 13. b4 {[%emt 0:00:17]} a5 {[%emt 0:00:17]} 14. b5 {[%emt 0:00:09]} dxc5 {[%emt 0:00:20]} 15. Bxc5 {[%emt 0:00:09]} b6 {[%emt 0:00:02]} 16. Bf2 {[%emt 0:00:15]} Rf7 {[%emt 0:00:12]} 17. Na4 {[%emt 0:00:14]} Nd6 $2 {[%emt 0:00:49][%mdl 8192] Black cannot hold the game after this.} (17... g4 $15 {keeps the upper hand.}) 18. Qxc7 $18 {[%emt 0:01:46]} Qxc7 {[%emt 0:00:23]} 19. Rxc7 {[%emt 0:00:01]} Nxb5 {[%emt 0:00:02]} 20. Rc1 {[%emt 0:00:02][%cal Oe2f4] Black must now prevent Nxf4!} Rb8 {[%emt 0:03:13] [#]} 21. Nxf4 $1 {[%emt 0:01:17][%mdl 512]} Nd4 {[%emt 0:00:43] Repels Ne6} 22. Nh5 {[%emt 0:00:56] Nxg7 would now be deadly.} Bd7 {[%emt 0:00:35]} 23. Nb2 {[%emt 0:00:20] And now Nxg7 would win.} Bf8 {[%emt 0:01:20]} 24. Bxd4 {[%emt 0:00:14]} exd4 {[%emt 0:00:04]} 25. d6 {[%emt 0:00:31]} b5 $2 {[%emt 0:02:16]} (25... Ng6 {keeps fighting.}) 26. dxe7 {[%emt 0:00:35]} Bxe7 {[%emt 0:00:09]} 27. Nd3 {[%emt 0:00:08]} Be6 {[%emt 0:00:35][%cal Bd7e6,Be6a2,Ba2f7][%mdl 32]} 28. Ne5 {[%emt 0:00:17]} Bxa2 {[%emt 0:01:58]} 29. Nxf7 {[%emt 0:00:17]} Kxf7 {[%emt 0:00:02]} (29... Bxf7 $142 30. Ng3 a4) 30. Rc7 {[%emt 0:00:37] White is clearly winning.} b4 {[%emt 0:00:44]} 31. Bd3 {[%emt 0:00:06]} Ke8 {[%emt 0:00:38]} 32. Ke2 {[%emt 0:00:19]} Bf7 {[%emt 0:00:32]} 33. Ng7+ {[%emt 0:00:17]} Kf8 {[%emt 0:00:41]} 34. Nf5 {[%emt 0:00:13][%csl LRd4,LRe7]} Bd8 {[%emt 0:00:15]} 35. Rd7 {[%emt 0:00:37]} a4 {[%emt 0:00:24]} 36. Nxd4 {[%emt 0:00:20] [#] Nc6 is the strong threat.} Ke8 {[%emt 0:00:37][%cal Bf8e8,Be8d7,Bd7c8,Bc8d8][%mdl 32]} 37. Nc6 {[%emt 0:00:49]} Kxd7 {[%emt 0:00:42]} 38. Nxb8+ {[%emt 0:00:01]} Kc8 {[%emt 0:00:20]} 39. Nc6 {[%emt 0:00:06]} b3 {[%emt 0:00:54]} 40. Nxd8 {[%emt 0:00:09]} Kxd8 {[%emt 0:00:01]} 41. Ra1 {[%emt 0:00:08]} Be8 {[%emt 0:00:03]} 42. Kd2 {[%emt 0:00:08] Weighted Error Value: White=0.16 (very precise) /Black=0.48.  Loses game:     	---       	Black=1      Mistake:       	---       	Black=3      Inaccurate:     	White=3     	Black=2      OK:         	White=13    	Black=8      Best:        	White=1     	Black=2} 1-0

[Event "13th All African Rapid-ch Men 2024"]
[Site "Accra"]
[Date "2024.03.10"]
[Round "3.7"]
[White "Pereira, Sergio Murilo de Ara"]
[Black "Pedro Manuel Envo Engonga Avom"]
[Result "0-1"]
[ECO "C68"]
[WhiteElo "2115"]
[BlackElo "1702"]
[Annotator "RC"]
[PlyCount "32"]
[EventDate "2024.03.07"]
[EventType "rapid"]
[EventCountry "GHA"]
[SourceTitle "playchess.com"]
[Source "ChessBase"]
[SourceQuality "1"]
[TimeControl "900+10"]

1. e4 {[%emt 0:00:08]} e5 {[%emt 0:00:04]} 2. Nf3 {[%emt 0:00:07]} Nc6 {[%emt 0:00:04]} 3. Bb5 {[%emt 0:00:05]} a6 {[%emt 0:00:04]} 4. Bxc6 {[%emt 0:00:23]} dxc6 {[%emt 0:00:04]} 5. O-O {[%emt 0:00:05]} Bg4 {[%emt 0:00:52]} 6. h3 {[%emt 0:00:01]} h5 {[%emt 0:00:01]} 7. d3 {[%emt 0:00:06]} Bc5 {[%emt 0:01:33]} 8. hxg4 {[%emt 0:00:48]} hxg4 {[%emt 0:00:04]} 9. Ng5 {[%emt 0:00:01]} Nh6 {[%emt 0:01:04]} 10. c3 {[%emt 0:03:07]} Be7 {[%emt 0:01:10]} 11. Nxf7 {[%emt 0:01:34]} Kxf7 {[%emt 0:00:37]} 12. Bxh6 {[%emt 0:00:07]} Rxh6 {[%emt 0:00:12]} 13. Qxg4 {[%emt 0:00:38]} Qxd3 {[%emt 0:00:51]} 14. Rd1 {[%emt 0:02:56]} Rah8 {[%emt 0:01:33]} 15. Qf3+ {[%emt 0:01:23]} Qxf3 {[%emt 0:00:05]} 16. gxf3 {[%emt 0:00:01]} Rh1+ {[%emt 0:00:04]} 0-1